fUST/lending_fUST_20250924
["ID","MTS","AMOUNT","RATE_DAILY","PERIOD"]
[387400786,1758714649516,-480.0,0.0002,2]
[387400787,1758714649525,-480.0,0.0002,2]
[387400788,1758714649535,-480.0,0.0002,2]
[387400789,1758714649614,-480.0,0.0002,2]
[387400790,1758714649624,-480.0,0.0002,2]
[387400791,1758714649637,-480.0,0.0002,2]
[387400792,1758714649647,-480.0,0.0002,2]
[387400793,1758714649658,-480.0,0.0002,2]
[387400794,1758714649667,-480.0,0.0002,2]
[387400795,1758714649677,-480.0,0.0002,2]
[387400796,1758714649686,-1782.96,0.0002,2]
[387400797,1758714649695,-739.66,0.0002,2]
[387400798,1758714649705,-480.0,0.0002,2]
[387400799,1758714649714,-480.0,0.0002,2]
[387400800,1758714649724,-480.0,0.0002,2]
[387400801,1758714649733,-755.18,0.0002,2]
[387400802,1758714649742,-480.0,0.0002,2]
[387400803,1758714649752,-480.0,0.0002,2]
[387400804,1758714649762,-480.0,0.0002,2]
[387400805,1758714649771,-480.0,0.0002,2]
[387400806,1758714649780,-480.0,0.0002,2]
[387400807,1758714649790,-480.0,0.0002,2]
[387400808,1758714649799,-480.0,0.0002,2]
[387400809,1758714649809,-480.0,0.0002,2]
[387400810,1758714649818,-480.0,0.0002,2]
[387400811,1758714649827,-480.0,0.0002,2]
[387400812,1758714649837,-480.0,0.0002,2]
[387400813,1758714649846,-885.12,0.0002,2]
[387400814,1758714649855,-599.67,0.0002,2]
[387400815,1758714649865,-902.38,0.0002,2]
[387400816,1758714649874,-480.0,0.0002,2]
[387400817,1758714649883,-480.0,0.0002,2]
[387400818,1758714649893,-480.0,0.0002,2]
[387400819,1758714649902,-480.0,0.0002,2]
[387400820,1758714649912,-480.0,0.0002,2]
[387400821,1758714649922,-151.0,0.0002,2]
[387400822,1758714649931,-480.0,0.0002,2]
[387400823,1758714649941,-151.0,0.0002,2]
[387400824,1758714649950,-151.0,0.0002,2]
[387400825,1758714649960,-947.84,0.0002,2]
[387400826,1758714649970,-151.0,0.0002,2]
[387400827,1758714649980,-480.0,0.0002,2]
[387400828,1758714649989,-480.0,0.0002,2]
[387400829,1758714649999,-480.0,0.0002,2]
[387400830,1758714650008,-480.0,0.0002,2]
[387400831,1758714650018,-480.0,0.0002,2]
[387400832,1758714650032,-480.0,0.0002,2]
[387400833,1758714650042,-480.0,0.0002,2]
[387400834,1758714650052,-480.0,0.0002,2]
[387400835,1758714650061,-813.63278569,0.0002,2]
[387400836,1758714650079,-789.80721431,0.0002,2]
[387400837,1758714650088,-490.48783455,0.0002,2]
[387400838,1758714650097,-480.0,0.0002,2]
[387400839,1758714650107,-1400.57,0.0002,2]
[387400840,1758714650117,-480.0,0.0002,2]
[387400841,1758714650127,-151.0,0.0002,2]
[387400842,1758714650137,-480.0,0.0002,2]
[387400843,1758714650146,-494.19026466,0.0002,2]
[387400844,1758714650156,-480.0,0.0002,2]
[387400845,1758714650165,-480.0,0.0002,2]
[387400846,1758714650175,-480.0,0.0002,2]
[387400847,1758714650186,-480.0,0.0002,2]
[387400848,1758714650196,-480.0,0.0002,2]
[387400849,1758714650205,-1236.82,0.0002,2]
[387400850,1758714650215,-480.0,0.0002,2]
[387400851,1758714650224,-500.0,0.00020021,2]
[387400852,1758714650234,-500.0,0.00020021,2]
[387400853,1758714650243,-1000.0,0.00020021,2]
[387400854,1758714650252,-1000.0,0.00020021,2]
[387400855,1758714650262,-500.0,0.00020021,2]
[387400856,1758714650270,-1000.0,0.00020021,2]
[387400857,1758714650281,-1500.0,0.00020268,2]
[387400858,1758714650291,-480.0,0.00020273,2]
[387400859,1758714650300,-151.0,0.00020273,2]
[387400860,1758714650309,-480.0,0.00020273,2]
[387400861,1758714650319,-151.0,0.00020273,2]
[387400862,1758714650329,-156.962449,0.00020273,2]
[387400863,1758714650339,-480.0,0.00020273,2]
[387400864,1758714650348,-151.0,0.00020273,2]
[387400865,1758714650358,-480.0,0.00020273,2]
[387400866,1758714650368,-480.0,0.00020273,2]
[387400867,1758714650378,-280.76317981,0.00020273,2]
[387400868,1758714650388,-480.0,0.00020273,2]
[387400869,1758714650398,-480.0,0.00020273,2]
[387400870,1758714650408,-480.0,0.00020273,2]
[387400871,1758714650418,-480.0,0.00020273,2]
[387400872,1758714650427,-480.0,0.00020273,2]
[387400873,1758714650438,-480.0,0.00020273,2]
[387400874,1758714650447,-438.28898516,0.00020273,2]
[387400875,1758714650457,-480.0,0.00020273,2]
[387400876,1758714650466,-487.99665548,0.00020273,2]
[387400877,1758714650475,-480.0,0.00020273,2]
[387400878,1758714650485,-579.99628243,0.00020273,2]
[387400879,1758714650495,-480.0,0.00020273,2]
[387400880,1758714650505,-480.0,0.00020273,2]
[387400881,1758714650515,-480.0,0.00020273,2]
[387400882,1758714650525,-480.0,0.00020273,2]
[387400883,1758714650534,-480.0,0.00020273,2]
[387400884,1758714650544,-480.0,0.00020273,2]
[387400885,1758714650555,-480.0,0.00020273,2]
[387400886,1758714650564,-480.0,0.00020273,2]
[387400887,1758714650573,-273.38329143,0.00020273,2]
[387400888,1758714650583,-480.0,0.00020273,2]
[387400889,1758714650593,-1290.12,0.00020273,2]
[387400890,1758714650603,-480.0,0.00020273,2]
[387400891,1758714650613,-480.0,0.00020273,2]
[387400892,1758714650624,-480.0,0.00020273,2]
[387400893,1758714650633,-480.0,0.00020273,2]
[387400894,1758714650643,-480.0,0.00020273,2]
[387400895,1758714650652,-480.0,0.00020273,2]
[387400896,1758714650662,-625.61491957,0.00020273,2]
[387400897,1758714650672,-480.0,0.00020273,2]
[387400898,1758714650682,-480.0,0.00020273,2]
[387400899,1758714650691,-489.00014418,0.00020273,2]
[387400900,1758714650703,-480.0,0.00020273,2]
[387400901,1758714650713,-641.04,0.00020273,2]
[387400902,1758714650723,-480.0,0.00020273,2]
[387400903,1758714650733,-791.32,0.00020273,2]
[387400904,1758714650744,-480.0,0.00020273,2]
[387400905,1758714650754,-480.0,0.00020273,2]
[387400906,1758714650763,-480.0,0.00020273,2]
[387400907,1758714650773,-480.0,0.00020273,2]
[387400908,1758714650783,-480.0,0.00020273,2]
[387400909,1758714650793,-151.0,0.00020273,2]
[387400910,1758714650804,-480.0,0.00020273,2]
[387400911,1758714650814,-758.05,0.00020273,2]
[387400912,1758714650823,-151.0,0.00020273,2]
[387400913,1758714650834,-151.0,0.00020273,2]
[387400914,1758714650844,-480.0,0.00020273,2]
[387400915,1758714650853,-480.0,0.00020273,2]
[387400916,1758714650863,-480.0,0.00020273,2]
[387400917,1758714650873,-480.0,0.00020273,2]
[387400918,1758714650882,-3597.26,0.00020273,2]
[387400919,1758714650891,-703.69,0.00020273,2]
[387400920,1758714650959,-480.0,0.00020273,2]
[387400921,1758714650969,-480.0,0.00020273,2]
[387400922,1758714650979,-480.0,0.00020273,2]
[387400923,1758714650989,-480.0,0.00020273,2]
[387400924,1758714650998,-480.0,0.00020273,2]
[387400925,1758714651008,-480.0,0.00020273,2]
[387400926,1758714651018,-480.0,0.00020273,2]
[387400927,1758714651033,-480.0,0.00020273,2]
[387400928,1758714651043,-480.0,0.00020273,2]
[387400929,1758714651053,-480.0,0.00020273,2]
[387400930,1758714651063,-480.0,0.00020273,2]
[387400931,1758714651072,-480.0,0.00020273,2]
[387400932,1758714651081,-480.0,0.00020273,2]
[387400933,1758714651091,-151.0,0.00020273,2]
[387400934,1758714651100,-480.0,0.00020273,2]
[387400935,1758714651113,-151.0,0.00020273,2]
[387400936,1758714651124,-480.0,0.00020273,2]
[387400937,1758714651133,-480.0,0.00020273,2]
[387400938,1758714651142,-152.257086,0.00020273,2]
[387400939,1758714651151,-151.0,0.00020273,2]
[387400940,1758714651161,-480.0,0.00020273,2]
[387400941,1758714651170,-180.020066,0.00020273,2]
[387400942,1758714651180,-151.0,0.00020273,2]
[387400943,1758714651189,-151.0,0.00020273,2]
[387400944,1758714651199,-480.0,0.00020273,2]
[387400945,1758714651208,-198.914957,0.00020273,2]
[387400946,1758714651217,-480.0,0.00020273,2]
[387400947,1758714651226,-480.0,0.00020273,2]
[387400948,1758714651235,-480.0,0.00020273,2]
[387400949,1758714651245,-198.914957,0.00020273,2]
[387400950,1758714651255,-198.914957,0.00020273,2]
[387400951,1758714651264,-480.0,0.00020273,2]
[387400952,1758714651274,-480.0,0.00020273,2]
[387400953,1758714651283,-198.914957,0.00020273,2]
[387400954,1758714651293,-480.0,0.00020273,2]
[387400955,1758714651302,-480.0,0.00020273,2]
[387400956,1758714651312,-151.0,0.00020273,2]
[387400957,1758714651321,-173.6009494,0.00020273,2]
[387400958,1758714651331,-480.0,0.00020273,2]
[387400959,1758714651340,-1782.96,0.00020273,2]
[387400960,1758714651349,-151.0,0.00020273,2]
[387400961,1758714651359,-480.0,0.00020273,2]
[387400962,1758714651368,-739.66,0.00020273,2]
[387400963,1758714651378,-480.0,0.00020273,2]
[387400964,1758714651387,-480.0,0.00020273,2]
[387400965,1758714651396,-755.18,0.00020273,2]
[387400966,1758714651406,-480.0,0.00020273,2]
[387400967,1758714651415,-480.0,0.00020273,2]
[387400968,1758714651424,-480.0,0.00020273,2]
[387400969,1758714651434,-480.0,0.00020273,2]
[387400970,1758714651443,-480.0,0.00020273,2]
[387400971,1758714651453,-480.0,0.00020273,2]
[387400972,1758714651463,-480.0,0.00020273,2]
[387400973,1758714651472,-480.0,0.00020273,2]
[387400974,1758714651482,-480.0,0.00020273,2]
[387400975,1758714651491,-480.0,0.00020273,2]
[387400976,1758714651500,-480.0,0.00020273,2]
[387400977,1758714651510,-151.0,0.00020273,2]
[387400978,1758714651520,-885.12,0.00020273,2]
[387400979,1758714651529,-902.38,0.00020273,2]
[387400980,1758714651539,-599.67,0.00020273,2]
[387400981,1758714651548,-497.7047718,0.00020273,2]
[387400982,1758714651558,-480.0,0.00020273,2]
[387400983,1758714651567,-480.0,0.00020273,2]
[387400984,1758714651576,-480.0,0.00020273,2]
[387400985,1758714651586,-480.0,0.00020273,2]
[387400986,1758714651595,-480.0,0.00020273,2]
[387400987,1758714651604,-947.84,0.00020273,2]
[387400988,1758714651614,-268.18370673,0.00020273,2]
[387400989,1758714651623,-480.0,0.00020273,2]
[387400990,1758714651633,-480.0,0.00020273,2]
[387400991,1758714651646,-480.0,0.00020273,2]
[387400992,1758714651656,-480.0,0.00020273,2]
[387400993,1758714651666,-480.0,0.00020273,2]
[387400994,1758714651675,-480.0,0.00020273,2]
[387400995,1758714651684,-1603.44,0.00020273,2]
[387400996,1758714651694,-480.0,0.00020273,2]
[387400997,1758714651703,-1400.57,0.00020273,2]
[387400998,1758714651713,-480.0,0.00020273,2]
[387400999,1758714651722,-480.0,0.00020273,2]
[387401000,1758714651732,-480.0,0.00020273,2]
[387401001,1758714651741,-197.41544201,0.00020273,2]
[387401002,1758714651751,-480.0,0.00020273,2]
[387401003,1758714651760,-480.0,0.00020273,2]
[387401004,1758714651770,-1236.82,0.00020273,2]
[387401005,1758714651779,-480.0,0.00020273,2]
[387401006,1758714651789,-1000.0,0.00020321,2]
[387401007,1758714651798,-501.00043887,0.00020321,2]
[387401008,1758714651807,-574.83810759,0.00020321,2]
[387401009,1758714651817,-276.56931734,0.00020321,2]
[387401010,1758714651832,-442.01721551,0.00020321,2]
[387401011,1758714651843,-281.41346715,0.00020321,2]
[387401012,1758714651852,-1003.62900369,0.00020321,2]
[387401013,1758714651862,-501.91883458,0.00020321,2]
[387401014,1758714651871,-500.0,0.00020321,2]
[387401015,1758714651881,-502.54404858,0.00020321,2]
[387401016,1758714651890,-155.0,0.00020411,3]
[387401017,1758714651899,-1500.0,0.00020468,2]
[387401018,1758714651909,-1177.74034965,0.00020468,2]
[387401019,1758714651919,-1500.0,0.00020468,2]
[387401020,1758714651928,-1451.71,0.00020495,2]
[387401021,1758714651938,-240.93450644,0.00020499,2]
[387401022,1758714651948,-437.81971568,0.00020516,2]
[387401023,1758714651957,-243.40218685,0.00020547,2]
[387401024,1758714651968,-480.0,0.00020547,2]
[387401025,1758714651977,-480.0,0.00020547,2]
[387401026,1758714651986,-480.0,0.00020547,2]
[387401027,1758714651996,-480.0,0.00020547,2]
[387401028,1758714652005,-480.0,0.00020547,2]
[387401029,1758714652014,-480.0,0.00020547,2]
[387401030,1758714652024,-480.0,0.00020547,2]
[387401031,1758714652036,-480.0,0.00020547,2]
[387401032,1758714652045,-480.0,0.00020547,2]
[387401033,1758714652055,-480.0,0.00020547,2]
[387401034,1758714652065,-480.0,0.00020547,2]
[387401035,1758714652074,-480.0,0.00020547,2]
[387401036,1758714652083,-480.0,0.00020547,2]
[387401037,1758714652093,-480.0,0.00020547,2]
[387401038,1758714652104,-480.0,0.00020547,2]
[387401039,1758714652114,-480.0,0.00020547,2]
[387401040,1758714652123,-1290.12,0.00020547,2]
[387401041,1758714652187,-491.73096177,0.00020547,2]
[387401042,1758714652201,-190.54448709,0.00020547,2]
[387401043,1758714652211,-480.0,0.00020547,2]
[387401044,1758714652221,-480.0,0.00020547,2]
[387401045,1758714652230,-480.0,0.00020547,2]
[387401046,1758714652240,-501.02490286,0.00020547,2]
[387401047,1758714652249,-580.33887951,0.00020547,2]
[387401048,1758714652258,-480.0,0.00020547,2]
[387401049,1758714652268,-641.04,0.00020547,2]
[387401050,1758714652277,-480.0,0.00020547,2]
[387401051,1758714652287,-791.32,0.00020547,2]
[387401052,1758714652296,-480.0,0.00020547,2]
[387401053,1758714652306,-480.0,0.00020547,2]
[387401054,1758714652315,-480.0,0.00020547,2]
[387401055,1758714652325,-480.0,0.00020547,2]
[387401056,1758714652334,-480.0,0.00020547,2]
[387401057,1758714652344,-758.05,0.00020547,2]
[387401058,1758714652355,-480.0,0.00020547,2]
[387401059,1758714652365,-480.0,0.00020547,2]
[387401060,1758714652374,-480.0,0.00020547,2]
[387401061,1758714652384,-480.0,0.00020547,2]
[387401062,1758714652394,-3597.26,0.00020547,2]
[387401063,1758714652404,-703.69,0.00020547,2]
[387401064,1758714652413,-480.0,0.00020547,2]
[387401065,1758714652423,-480.0,0.00020547,2]
[387401066,1758714652433,-480.0,0.00020547,2]
[387401067,1758714652442,-480.0,0.00020547,2]
[387401068,1758714652452,-480.0,0.00020547,2]
[387401069,1758714652461,-480.0,0.00020547,2]
[387401070,1758714652470,-320.58322406,0.00020547,2]
[387401071,1758714652480,-480.0,0.00020547,2]
[387401072,1758714652490,-480.0,0.00020547,2]
[387401073,1758714652500,-480.0,0.00020547,2]
[387401074,1758714652509,-480.0,0.00020547,2]
[387401075,1758714652519,-480.0,0.00020547,2]
[387401076,1758714652529,-480.0,0.00020547,2]
[387401077,1758714652539,-480.0,0.00020547,2]
[387401078,1758714652548,-480.0,0.00020547,2]
[387401079,1758714652558,-480.0,0.00020547,2]
[387401080,1758714652568,-480.0,0.00020547,2]
[387401081,1758714652577,-480.0,0.00020547,2]
[387401082,1758714652586,-480.0,0.00020547,2]
[387401083,1758714652596,-480.0,0.00020547,2]
[387401084,1758714652605,-480.0,0.00020547,2]
[387401085,1758714652615,-480.0,0.00020547,2]
[387401086,1758714652625,-480.0,0.00020547,2]
[387401087,1758714652634,-480.0,0.00020547,2]
[387401088,1758714652645,-1782.96,0.00020547,2]
[387401089,1758714652654,-480.0,0.00020547,2]
[387401090,1758714652664,-739.66,0.00020547,2]
[387401091,1758714652674,-480.0,0.00020547,2]
[387401092,1758714652684,-480.0,0.00020547,2]
[387401093,1758714652693,-755.18,0.00020547,2]
[387401094,1758714652702,-480.0,0.00020547,2]
[387401095,1758714652712,-480.0,0.00020547,2]
[387401096,1758714652721,-480.0,0.00020547,2]
[387401097,1758714652731,-480.0,0.00020547,2]
[387401098,1758714652741,-480.0,0.00020547,2]
[387401099,1758714652751,-480.0,0.00020547,2]
[387401100,1758714652760,-480.0,0.00020547,2]
[387401101,1758714652769,-480.0,0.00020547,2]
[387401102,1758714652779,-480.0,0.00020547,2]
[387401103,1758714652789,-480.0,0.00020547,2]
[387401104,1758714652798,-480.0,0.00020547,2]
[387401105,1758714652808,-885.12,0.00020547,2]
[387401106,1758714652818,-902.38,0.00020547,2]
[387401107,1758714652827,-599.67,0.00020547,2]
[387401108,1758714652837,-480.0,0.00020547,2]
[387401109,1758714652847,-480.0,0.00020547,2]
[387401110,1758714652856,-502.69792857,0.00020547,2]
[387401111,1758714652866,-487.46875026,0.00020547,2]
[387401112,1758714652875,-480.0,0.00020547,2]
[387401113,1758714652884,-947.84,0.00020547,2]
[387401114,1758714652894,-480.0,0.00020547,2]
[387401115,1758714652903,-480.0,0.00020547,2]
[387401116,1758714652912,-480.0,0.00020547,2]
[387401117,1758714652922,-480.0,0.00020547,2]
[387401118,1758714652931,-512.95434121,0.00020547,2]
[387401119,1758714652940,-480.0,0.00020547,2]
[387401120,1758714652950,-1603.44,0.00020547,2]
[387401121,1758714652960,-480.0,0.00020547,2]
[387401122,1758714652969,-480.0,0.00020547,2]
[387401123,1758714652979,-1400.57,0.00020547,2]
[387401124,1758714652988,-480.0,0.00020547,2]
[387401125,1758714652998,-480.0,0.00020547,2]
[387401126,1758714653008,-480.0,0.00020547,2]
[387401127,1758714653017,-480.0,0.00020547,2]
[387401128,1758714653028,-1236.82,0.00020547,2]
[387401129,1758714653037,-480.0,0.00020547,2]
[387401130,1758714653047,-1500.0,0.00020568,2]
[387401131,1758714653056,-1500.0,0.00020568,2]
[387401132,1758714653067,-923.64296517,0.00020568,2]
[387401133,1758714653076,-151.0,0.00020687,2]
[387401134,1758714653086,-500.0,0.00020687,2]
[387401135,1758714653095,-525.60880324,0.00020687,2]
[387401136,1758714653106,-501.74539357,0.00020687,2]
[387401137,1758714653115,-500.0,0.00020687,2]
[387401138,1758714653125,-448.69437294,0.00020687,2]
[387401139,1758714653135,-161.09003437,0.00020687,2]
[387401140,1758714653144,-500.0,0.00020687,2]
[387401141,1758714653154,-500.0,0.00020687,2]
[387401142,1758714653163,-500.0,0.00020687,2]
[387401143,1758714653172,-500.0,0.00020687,2]
[387401144,1758714653182,-500.0,0.00020687,2]
[387401145,1758714653193,-500.0,0.00020687,2]
[387401146,1758714653203,-500.0,0.00020687,2]
[387401147,1758714653212,-529.23636076,0.00020687,2]
[387401148,1758714653221,-500.0,0.00020687,2]
[387401149,1758714653231,-500.0,0.00020687,2]
[387401150,1758714653240,-500.0,0.00020687,2]
[387401151,1758714653250,-500.0,0.00020687,2]
[387401152,1758714653259,-500.0,0.00020687,2]
[387401153,1758714653320,-500.0,0.00020687,2]
[387401154,1758714653334,-500.0,0.00020687,2]
[387401155,1758714653344,-626.34630305,0.00020687,2]
[387401156,1758714653353,-420.0,0.00020789,2]
[387401157,1758714653363,-417.07,0.00020799,2]
[387401158,1758714653372,-2000.0,0.00020816,2]
[387401159,1758714653382,-480.0,0.00020821,2]
[387401160,1758714653392,-480.0,0.00020821,2]
[387401161,1758714653401,-480.0,0.00020821,2]
[387401162,1758714653411,-480.0,0.00020821,2]
[387401163,1758714653421,-480.0,0.00020821,2]
[387401164,1758714653431,-480.0,0.00020821,2]
[387401165,1758714653440,-322.97889396,0.00020821,2]
[387401166,1758714653450,-154.878965,0.00020821,2]
[387401167,1758714653459,-480.0,0.00020821,2]
[387401168,1758714653468,-480.0,0.00020821,2]
[387401169,1758714653478,-480.0,0.00020821,2]
[387401170,1758714653487,-480.0,0.00020821,2]
[387401171,1758714653497,-480.0,0.00020821,2]
[387401172,1758714653506,-151.0,0.00020821,2]
[387401173,1758714653515,-160.184184,0.00020821,2]
[387401174,1758714653524,-480.0,0.00020821,2]
[387401175,1758714653534,-277.52660685,0.00020821,2]
[387401176,1758714653543,-1290.12,0.00020821,2]
[387401177,1758714653553,-480.0,0.00020821,2]
[387401178,1758714653562,-480.0,0.00020821,2]
[387401179,1758714653572,-480.0,0.00020821,2]
[387401180,1758714653581,-480.0,0.00020821,2]
[387401181,1758714653590,-641.04,0.00020821,2]
[387401182,1758714653600,-480.0,0.00020821,2]
[387401183,1758714653610,-791.32,0.00020821,2]
[387401184,1758714653619,-480.0,0.00020821,2]
[387401185,1758714653629,-480.0,0.00020821,2]
[387401186,1758714653638,-480.0,0.00020821,2]
[387401187,1758714653647,-758.05,0.00020821,2]
[387401188,1758714653656,-480.0,0.00020821,2]
[387401189,1758714653666,-480.0,0.00020821,2]
[387401190,1758714653675,-480.0,0.00020821,2]
[387401191,1758714653685,-480.0,0.00020821,2]
[387401192,1758714653694,-3597.26,0.00020821,2]
[387401193,1758714653704,-703.69,0.00020821,2]
[387401194,1758714653714,-480.0,0.00020821,2]
[387401195,1758714653723,-480.0,0.00020821,2]
[387401196,1758714653733,-480.0,0.00020821,2]
[387401197,1758714653743,-480.0,0.00020821,2]
[387401198,1758714653752,-480.0,0.00020821,2]
[387401199,1758714653762,-480.0,0.00020821,2]
[387401200,1758714653771,-480.0,0.00020821,2]
[387401201,1758714653781,-480.0,0.00020821,2]
[387401202,1758714653791,-480.0,0.00020821,2]
[387401203,1758714653801,-480.0,0.00020821,2]
[387401204,1758714653811,-349.25229494,0.00020821,2]
[387401205,1758714653820,-480.0,0.00020821,2]
[387401206,1758714653829,-480.0,0.00020821,2]
[387401207,1758714653839,-480.0,0.00020821,2]
[387401208,1758714653848,-480.0,0.00020821,2]
[387401209,1758714653857,-480.0,0.00020821,2]
[387401210,1758714653867,-480.0,0.00020821,2]
[387401211,1758714653876,-480.0,0.00020821,2]
[387401212,1758714653886,-480.0,0.00020821,2]
[387401213,1758714653897,-480.0,0.00020821,2]
[387401214,1758714653906,-480.0,0.00020821,2]
[387401215,1758714653916,-480.0,0.00020821,2]
[387401216,1758714653926,-1782.96,0.00020821,2]
[387401217,1758714653935,-480.0,0.00020821,2]
[387401218,1758714653945,-739.66,0.00020821,2]
[387401219,1758714653964,-480.0,0.00020821,2]
[387401220,1758714653975,-480.0,0.00020821,2]
[387401221,1758714653984,-755.18,0.00020821,2]
[387401222,1758714653994,-480.0,0.00020821,2]
[387401223,1758714654004,-480.0,0.00020821,2]
[387401224,1758714654014,-480.0,0.00020821,2]
[387401225,1758714654024,-480.0,0.00020821,2]
[387401226,1758714654037,-480.0,0.00020821,2]
[387401227,1758714654047,-480.0,0.00020821,2]
[387401228,1758714654057,-480.0,0.00020821,2]
[387401229,1758714654067,-480.0,0.00020821,2]
[387401230,1758714654076,-480.0,0.00020821,2]
[387401231,1758714654085,-228.07186762,0.00020821,2]
[387401232,1758714654095,-885.12,0.00020821,2]
[387401233,1758714654104,-599.67,0.00020821,2]
[387401234,1758714654114,-902.38,0.00020821,2]
[387401235,1758714654124,-490.45850109,0.00020821,2]
[387401236,1758714654133,-480.0,0.00020821,2]
[387401237,1758714654143,-151.0,0.00020821,2]
[387401238,1758714654153,-151.0,0.00020821,2]
[387401239,1758714654163,-480.0,0.00020821,2]
[387401240,1758714654173,-151.0,0.00020821,2]
[387401241,1758714654183,-947.84,0.00020821,2]
[387401242,1758714654193,-151.0,0.00020821,2]
[387401243,1758714654202,-480.0,0.00020821,2]
[387401244,1758714654212,-480.0,0.00020821,2]
[387401245,1758714654221,-480.0,0.00020821,2]
[387401246,1758714654231,-480.0,0.00020821,2]
[387401247,1758714654241,-480.0,0.00020821,2]
[387401248,1758714654251,-1603.44,0.00020821,2]
[387401249,1758714654261,-480.0,0.00020821,2]
[387401250,1758714654270,-480.0,0.00020821,2]
[387401251,1758714654280,-1400.57,0.00020821,2]
[387401252,1758714654290,-465.07036988,0.00020821,2]
[387401253,1758714654299,-480.0,0.00020821,2]
[387401254,1758714654309,-480.0,0.00020821,2]
[387401255,1758714654320,-480.0,0.00020821,2]
[387401256,1758714654410,-429.38312153,0.00020821,2]
[387401257,1758714654425,-749.12691578,0.00020821,2]
[387401258,1758714654437,-58.30996269,0.00020821,2]
[387401259,1758714654447,-480.0,0.00020821,2]
[387401260,1758714654456,-473.92437715,0.00020868,2]
[387401261,1758714654519,-480.0,0.00019178,2]
[387401262,1758714654529,-480.0,0.00019452,2]
[387401263,1758714654539,-480.0,0.00019726,2]
[387401264,1758714654550,-606.54767906,0.00020868,2]
[387401265,1758714654560,-1680.0,0.00020889,2]
[387401266,1758714654570,-500.0,0.00020915,2]
[387401267,1758714654579,-500.0,0.00020915,2]
[387401268,1758714654589,-500.0,0.00020932,2]
[387401269,1758714654598,-500.0,0.00020932,2]
[387401270,1758714654608,-151.0,0.00020935,2]
[387401271,1758714654618,-155.168099,0.00020935,2]
[387401272,1758714654628,-151.0,0.00020935,2]
[387401273,1758714654638,-500.54082936,0.00020935,2]
[387401274,1758714654649,-500.0,0.00020935,2]
[387401275,1758714654659,-1313.56767146,0.00020972,2]
[387401276,1758714654671,-800.3032821,0.00020972,2]
[387401277,1758714654682,-674.07820269,0.00020972,2]
[387401278,1758714654692,-160.0,0.00021005,2]
[387401279,1758714654701,-2000.0,0.00021016,2]
[387401280,1758714654711,-2000.0,0.00021016,2]
[387401281,1758714654721,-500.0,0.0002105,2]
[387401282,1758714654730,-509.6540446,0.0002105,2]
[387401283,1758714654740,-350.0,0.00021064,2]
[387401284,1758714654750,-350.0,0.00021064,2]
[387401285,1758714654759,-350.0,0.00021064,2]